[Event "GCT Superbet Rapid Poland 2025"]
[Site "Warsaw"]
[Date "2025.04.28"]
[Round "8.2"]
[White "Fedoseev, Vladimir"]
[Black "Aronian, Levon"]
[Result "1/2-1/2"]
[Annotator "TA"]
[ECO "A32"]
[WhiteElo "2739"]
[BlackElo "2747"]
[PlyCount "54"]
[EventDate "2025.04.23"]
[EventType "tourn"]
[EventCountry "POL"]
[SourceTitle "playchess.com"]
[Source "ChessBase"]
[SourceQuality "1"]
[TimeControl "1500+10"]

{[%evp 12,54,-11,0,8,19,17,35,34,49,39,30,35,27,48,27,41,33,39,43,27,0,0,0,0,0,0,0,0,0,0,0,0,0,36,29,40,16,27,0,37,0,32,0,43]} 1. d4 {[%emt 0:00:05]} Nf6 {[%emt 0:00:04]} 2. c4 {[%emt 0:00:02]} e6 {[%emt 0:00:01]} 3. g3 {[%emt 0:00:14]} c5 {[%emt 0:00:02]} 4. Nf3 {[%emt 0:00:31]} cxd4 {[%emt 0:00:05]} 5. Nxd4 {[%emt 0:00:17]} Qc7 {[%emt 0:00:20]} 6. Nc3 {[%emt 0:01:17]} a6 {[%emt 0:00:01]} 7. Bg5 {[%emt 0:01:41]} Bb4 {[%emt 0:01:18] is the legacy move (7...Be7). A32: Symmetrical English: 2 Nf3 Nf6 3 d4 cxd4 4 Nxd4 e6.} 8. Bg2 {[%emt 0:01:18][%cal Bf1g2,Bg2e4,Be4b7][%mdl 32]} Bxc3+ $146 {[%emt 0:00:58]} (8... Qxc4 9. O-O Nc6 10. Nxc6 dxc6 11. Rc1 O-O 12. Ne4 Qb5 13. Nxf6+ gxf6 14. Bxf6 Qf5 15. Qd4 Re8 16. Qh4 h5 17. Rc4 {1-0 Rotstein,A (2490)-Dizdarevic,E (2465) Cannes op 1995 (9)}) 9. bxc3 {[%emt 0:00:02]} Qxc4 {[%emt 0:00:06] White is slightly better.} 10. O-O {[%emt 0:00:05]} d5 {[%emt 0:00:27] [#]} 11. e4 $1 {[%emt 0:02:02]} dxe4 {[%emt 0:00:12]} 12. Bxf6 $1 {[%emt 0:00:07]} gxf6 {[%emt 0:00:01]} 13. Bxe4 {[%emt 0:00:02] White sacrificed a pawn} Nd7 {[%emt 0:00:02][%cal Oh7h5]} 14. Re1 {[%emt 0:00:16]} Qc5 {[%emt 0:02:51][%cal Oh7h5]} 15. Rb1 {[%emt 0:02:21]} O-O {[%emt 0:02:15]} 16. Bxb7 {[%emt 0:01:34]} Rb8 {[%emt 0:00:18][%cal Ba8b8,Bb8b7,Bb7b5,Bb5f5][%mdl 32]} 17. Nb3 {[%emt 0:02:15]} Qc7 {[%emt 0:01:16]} 18. Bg2 {[%emt 0:01:14]} Bb7 {[%emt 0:00:04]} 19. Bxb7 {[%emt 0:00:17] Successful Defense White} Rxb7 {[%emt 0:00:02]} 20. Qg4+ {[%emt 0:01:24]} Kh8 {[%emt 0:00:02][%cal Od7e5]} 21. Re3 {[%emt 0:00:06]} Rb5 {[%emt 0:01:34]} 22. Rd1 {[%emt 0:00:07]} Qb7 {[%emt 0:02:44]} 23. c4 {[%emt 0:00:32]} Rf5 {[%emt 0:01:15]} 24. Nd4 {[%emt 0:00:56] Active counter play!} Rc5 {[%emt 0:01:25]} 25. Nb3 {[%emt 0:00:05][%cal Od1d7] [#]} Rf5 $1 {[%emt 0:00:03]} 26. Nd4 {[%emt 0:01:30]} Rc5 {[%emt 0:00:03]} 27. Nb3 {[%emt 0:00:37][%cal Od1d7] Hoping for Rxd7!.} Rf5 $1 {[%emt 0:00:09] Weighted Error Value: White=0.10 (very precise) /Black=0.04 (flawless)   Inaccurate:     	White=1     	Black=1      OK:         	White=6     	Black=8      Best:        	White=1     	---        Strong:       	White=1     	Black=2} 1/2-1/2